bitfinex/quotes_SOLUSD_20220101
["timestamp","ask_amount","ask_price","bid_price","bid_amount"]
[1641053056886,12.1316489,173.95,173.84,18.238]
[1641053060493,12.1316489,173.95,173.84,9.6107]
[1641053060691,13.55834258,173.95,173.84,9.6107]
[1641053061093,13.55834258,173.95,173.71,179.2417]
[1641053061295,1.4953489,173.93,173.78,1.2604]
[1641053061498,8.6312,173.86,173.78,9.5904]
[1641053061693,8.6312,173.86,173.78,8.33]
[1641053061897,9.3912,173.86,173.78,8.33]
[1641053063708,9.3912,173.86,173.78,16.9609]
[1641053063903,8.8912,173.86,173.78,16.9609]
[1641053066607,8.6312,173.86,173.78,16.9609]
[1641053067009,27.48771428,173.85,173.78,16.9609]
[1641053067842,8.6303,173.87,173.78,16.9609]
[1641053068042,8.8903,173.87,173.78,16.9609]
[1641053068242,9.3903,173.87,173.78,16.9609]
[1641053069242,8.8903,173.87,173.78,16.9609]
[1641053069444,0.26,173.87,173.78,18.64759368]
[1641053069646,1.4953489,173.89,173.78,18.64759368]
[1641053070045,1.4953489,173.91,173.78,18.64759368]
[1641053070251,1.4953489,173.91,173.79,1.2654]
[1641053070446,104.79635838,173.93,173.85,8.6271]
[1641053071046,105.05635838,173.93,173.85,8.6271]
[1641053078154,105.55635838,173.93,173.85,8.6271]
[1641053079686,74.0973,173.93,173.85,8.6271]
[1641053079880,1.4953489,173.97,173.86,8.33]
[1641053080084,1.4953489,173.97,173.89,8.6255]
[1641053080280,1.9953489,173.97,173.89,8.6255]
[1641053080482,0.5,173.97,173.89,8.6255]
[1641053080881,28.35755939,173.97,173.89,8.6255]
[1641053081286,0.5,173.97,173.89,8.6255]
[1641053081684,0.5,173.97,173.89,16.9555]
[1641053081888,2.2553489,173.99,173.89,16.9555]
[1641053082085,1.9953489,173.99,173.89,16.9555]
[1641053082386,29.24803709,173.99,173.89,16.9555]
[1641053082984,30.74338599,173.99,173.89,16.9555]
[1641053083489,168.7267489,174.0,173.89,16.9555]
[1641053083685,158.7592489,174.0,173.89,26.26319368]
[1641053084485,157.2639,174.0,173.89,26.26319368]
[1641053084685,157.2639,174.0,173.89,27.55559368]
[1641053084888,158.0239,174.0,173.89,27.55559368]
[1641053085088,79.0255,174.0,173.89,26.1289]
[1641053086188,79.0255,174.0,173.89,18.5079]
[1641053086889,79.2855,174.0,173.89,18.2479]
[1641053087289,80.7808489,174.0,173.89,18.2479]
[1641053087891,1.4953489,173.99,173.89,18.2479]
[1641053088094,1.7553489,173.99,173.89,18.2479]
[1641053088293,2.2553489,173.99,173.89,18.2479]
[1641053088691,1.7553489,173.99,173.89,18.5079]
[1641053089294,0.76,173.99,173.89,18.5079]
[1641053089494,0.5,173.99,173.89,18.5079]
[1641053089996,80.7808489,174.0,173.89,18.5079]
[1641053090395,79.2855,174.0,173.89,18.5079]
[1641053092099,0.76,174.0,173.89,18.5079]
[1641053092398,0.26,174.0,173.89,18.5079]
[1641053092601,27.55280314,174.02,173.89,19.93459368]
[1641053094402,1.4953489,174.01,173.89,19.93459368]
[1641053094602,1.7553489,174.01,173.89,19.93459368]
[1641053094801,2.2553489,174.01,173.89,19.93459368]
[1641053097203,0.76,174.01,173.89,19.93459368]
[1641053097403,0.26,174.01,173.89,19.93459368]
[1641053097604,34.68045424,174.02,173.89,19.93459368]
[1641053098707,26.05745424,174.02,173.89,19.93459368]
[1641053099706,26.05745424,174.02,173.89,18.5079]
[1641053099908,26.05745424,174.02,173.89,19.93459368]
[1641053100708,25.55745424,174.02,173.89,19.93459368]
[1641053100909,76.84904258,174.07,173.89,19.93459368]
[1641053101106,1.2801,174.06,173.9,75.9246]
[1641053101308,1.2801,174.06,173.97,8.6211]
[1641053101506,1.7801,174.06,173.97,8.6211]
[1641053101907,27.93855206,174.05,173.97,8.6211]
[1641053102110,36.56045206,174.05,173.96,1.2453]
[1641053102308,37.06045206,174.05,173.96,1.2453]
[1641053102507,37.32045206,174.05,173.96,1.2453]
[1641053103412,37.32045206,174.05,173.93,8.33]
[1641053104211,1.2336,174.04,173.93,8.33]
[1641053104414,10.3558,174.04,173.93,16.953]
[1641053104612,10.3558,174.04,173.93,18.63969368]
[1641053104613,10.6158,174.04,173.93,18.63969368]
[1641053104813,0.76,174.04,173.94,1.3157]
[1641053105012,0.5,174.04,173.95,8.33]
[1641053105240,28.69855206,174.05,173.95,8.33]
[1641053106015,1.4953489,174.04,173.95,8.33]
[1641053106416,0.76,174.04,173.95,8.33]
[1641053106616,0.76,174.04,173.97,8.6214]
[1641053107015,38.81570096,174.05,173.97,8.6214]
[1641053108317,38.55570096,174.05,173.97,8.6214]
[1641053108518,1.4953489,174.04,173.97,8.8814]
[1641053108817,1.4953489,174.04,173.97,8.6214]
[1641053109014,1.9953489,174.04,173.97,8.6214]
[1641053109217,1.9953489,174.04,173.97,16.9514]
[1641053110620,1.9953489,174.04,173.97,17.2114]
[1641053110817,0.5,174.04,173.97,17.2114]
[1641053111220,38.55570096,174.05,173.97,17.2114]
[1641053111621,38.81570096,174.05,173.97,17.2114]
[1641053113324,37.32035206,174.05,173.97,17.2114]
[1641053113521,28.69855206,174.05,173.97,17.2114]
[1641053113921,28.69855206,174.05,173.97,16.9514]
[1641053115525,37.32005206,174.05,173.97,16.9514]
[1641053115726,37.32005206,174.05,173.96,1.2808]
[1641053115727,37.32005206,174.05,173.95,8.622]
[1641053115928,37.32005206,174.05,173.93,1.2535]
[1641053116227,1.2579,174.04,173.95,8.33]
[1641053116525,1.2579,174.04,173.93,1.2535]
[1641053116526,3.5132489,174.04,173.93,1.2535]
[1641053116727,8.6229,174.03,173.93,1.2535]
[1641053116924,9.1229,174.03,173.93,1.5135]
[1641053117128,9.3829,174.03,173.93,1.5135]
[1641053117327,8.8829,174.03,173.93,1.5135]
[1641053117529,8.8829,174.03,173.93,10.1365]
[1641053117730,8.8829,174.03,173.94,8.33]
[1641053118028,0.26,174.03,173.94,8.59]
[1641053118431,0.26,174.04,173.96,8.6219]
[1641053118630,36.82045206,174.05,173.96,8.6219]
[1641053119829,37.32045206,174.05,173.96,8.6219]
[1641053120034,36.82045206,174.05,173.96,8.6219]
[1641053120252,37.32045206,174.05,173.96,16.9519]
[1641053120654,37.32045206,174.05,173.96,8.6219]
[1641053120854,37.32045206,174.05,173.95,1.2545]
[1641053121255,37.32045206,174.05,173.96,8.33]
[1641053126163,38.81580096,174.05,173.96,8.33]
[1641053128668,29.43390096,174.05,173.96,17.212]
[1641053129265,27.93855206,174.05,173.96,17.212]
[1641053129867,28.19855206,174.05,173.96,16.952]
[1641053130667,27.93855206,174.05,173.96,16.952]
[1641053131670,36.56015206,174.05,173.96,16.952]
[1641053131968,36.82015206,174.05,173.96,16.952]
[1641053132570,36.56015206,174.05,173.96,17.212]
[1641053132772,27.93855206,174.05,173.96,17.212]
[1641053133372,27.93855206,174.05,173.96,16.952]
[1641053133972,27.93855206,174.05,173.96,17.212]
[1641053134774,27.93855206,174.05,173.96,16.952]
[1641053136076,28.19855206,174.05,173.96,16.952]
[1641053136473,36.82005206,174.05,173.96,16.952]
[1641053137275,37.32005206,174.05,173.96,16.952]
[1641053138376,36.82005206,174.05,173.96,16.952]
[1641053138577,0.26,174.05,173.96,17.212]
[1641053138978,82.8079,174.07,173.96,17.212]
[1641053139377,82.8079,174.07,173.99,8.6205]
[1641053139579,31.68062791,174.06,173.99,8.6205]
[1641053139978,32.44062791,174.06,173.99,8.33]
[1641053140378,31.94062791,174.06,173.99,8.33]
[1641053140979,31.94062791,174.06,173.97,1.2654]
[1641053141382,31.68062791,174.06,173.98,8.33]
[1641053141584,31.68062791,174.06,173.98,8.59]
[1641053141982,31.68062791,174.06,173.98,8.33]
[1641053142181,31.68062791,174.06,173.98,8.59]
[1641053142584,31.94062791,174.06,174.0,8.6201]
[1641053142783,31.68062791,174.06,174.0,8.6201]
[1641053142982,31.68062791,174.06,173.95,28.7342]
[1641053143185,31.68062791,174.06,173.96,9.5894]
[1641053143683,31.68062791,174.06,173.96,9.8494]
[1641053144084,31.94062791,174.06,173.96,9.8494]
[1641053144684,31.94062791,174.06,173.99,8.6205]
[1641053146809,31.94062791,174.06,173.99,16.9505]
[1641053147014,32.44062791,174.06,173.99,16.9505]
[1641053147217,32.44062791,174.06,173.99,8.6205]
[1641053147411,31.94062791,174.06,173.99,8.6205]
[1641053147613,31.94062791,174.06,173.99,16.9505]
[1641053148012,32.44062791,174.06,173.99,16.9505]
[1641053148215,41.06162791,174.06,173.99,16.9505]
[1641053148419,31.94062791,174.06,173.99,8.6205]
[1641053148617,31.94062791,174.06,173.99,8.8805]
[1641053148816,31.94062791,174.06,174.0,8.33]
[1641053149020,31.94062791,174.06,174.0,16.9498]
[1641053153821,31.94062791,174.06,174.0,8.6198]
[1641053154022,31.94062791,174.06,174.01,8.33]
[1641053154424,31.94062791,174.06,174.0,16.9498]
[1641053154622,31.94062791,174.06,174.0,8.6198]
[1641053155525,31.94062791,174.06,174.0,8.33]
[1641053157424,31.94062791,174.06,173.97,8.33]
[1641053157625,31.94062791,174.06,173.99,8.6203]
[1641053157827,32.44062791,174.06,173.99,16.9503]
[1641053158028,31.94062791,174.06,173.99,16.9503]
[1641053158428,31.94062791,174.06,173.99,8.6203]
[1641053158628,31.94062791,174.06,174.0,8.33]
[1641053159829,31.94062791,174.06,173.99,16.9503]
[1641053160431,1.3403,174.07,173.99,16.9503]
[1641053160432,10.1153489,174.09,173.99,16.9503]
[1641053160732,2.8399489,174.1,173.99,17.2103]
[1641053161231,1.3446,174.1,173.99,17.2103]
[1641053161431,27.62684531,174.09,173.99,16.9503]
[1641053161835,28.38684531,174.09,173.99,8.33]
[1641053162031,28.38684531,174.09,173.98,1.2845]
[1641053162233,1.42669368,174.08,173.98,1.2845]
[1641053162430,1.92669368,174.08,173.98,1.2845]
[1641053162632,2.18669368,174.08,173.98,1.2845]
[1641053162835,8.6217,174.04,173.98,1.2845]
[1641053163037,8.8817,174.04,173.98,1.2845]
[1641053163233,1.3283,174.07,173.98,1.2845]
[1641053163534,1.3283,174.07,173.98,1.5445]
[1641053163934,1.3283,174.07,173.98,1.2845]
[1641053164136,9.9486,174.07,173.98,1.2845]
[1641053164341,11.87529368,174.07,173.98,1.2845]
[1641053164735,10.4486,174.07,173.98,1.2845]
[1641053165336,11.9439489,174.07,173.94,8.33]
[1641053165536,11.9439489,174.07,173.95,1.2423]
[1641053165736,11.9439489,174.07,173.96,8.6219]
[1641053166136,10.7086,174.07,173.96,8.6219]
[1641053166840,12.2039489,174.07,173.96,8.6219]
[1641053167440,12.2039489,174.07,173.97,1.3106]
[1641053169139,1.4953489,174.06,173.97,1.3106]
[1641053169340,8.6219,174.05,173.97,1.3106]
[1641053169539,8.8819,174.05,173.97,1.3106]
[1641053170542,10.1492,174.05,173.97,1.3106]
[1641053171345,10.6492,174.05,173.96,8.6219]
[1641053172444,10.6492,174.05,173.95,1.2835]
[1641053172646,10.6492,174.05,173.95,9.8735]
[1641053172870,10.6492,174.05,173.95,8.59]
[1641053174369,10.3892,174.05,173.95,8.33]
[1641053174571,10.3892,174.05,173.95,16.9522]
[1641053175072,10.3892,174.05,173.95,8.33]
[1641053175370,10.3892,174.05,173.92,9.562]
[1641053175670,10.6492,174.05,173.92,8.33]
[1641053175970,12.1445489,174.05,173.92,8.33]
[1641053176371,1.4953489,174.04,173.92,8.33]
[1641053176575,8.6243,174.0,173.92,8.33]
[1641053176770,31.94634803,173.99,173.92,8.33]
[1641053176972,32.20634803,173.99,173.92,8.33]
[1641053178673,0.26,173.99,173.92,8.33]
[1641053178875,9.3837,174.02,173.93,1.2895]
[1641053179079,0.76,174.02,173.92,8.33]
[1641053179475,81.0947,174.03,173.92,8.33]
[1641053179677,28.69654772,174.02,173.92,8.33]
[1641053179877,8.6243,174.0,173.92,8.33]
[1641053180075,8.8843,174.0,173.92,8.33]
[1641053180275,9.3843,174.0,173.92,8.33]
[1641053181074,8.8843,174.0,173.92,8.33]
[1641053181276,9.3843,174.0,173.92,8.33]
[1641053181475,8.8843,174.0,173.92,8.33]
[1641053181676,9.3843,174.0,173.92,8.33]
[1641053182376,8.8843,174.0,173.92,8.33]
[1641053183377,9.3843,174.0,173.92,8.33]
[1641053183676,8.8843,174.0,173.92,8.33]
[1641053183875,9.3843,174.0,173.92,8.33]
[1641053186577,8.8843,174.0,173.92,8.33]
[1641053186880,9.3843,174.0,173.92,8.33]
[1641053187979,0.26,174.0,173.92,8.33]
[1641053188381,10.1289,174.01,173.92,8.33]
[1641053188979,10.6289,174.01,173.92,8.33]
[1641053191981,10.1289,174.01,173.92,8.33]
[1641053192381,10.6289,174.01,173.92,8.33]
[1641053192584,10.1289,174.01,173.92,8.33]
[1641053192781,1.2452,174.01,173.92,8.33]
[1641053192985,79.0116,174.03,173.92,17.2135]
[1641053193185,1.4953489,174.04,173.92,17.2135]
[1641053193385,2.7496489,174.06,173.93,1.3466]
[1641053193586,2.7496489,174.06,173.94,8.33]
[1641053193789,3.2496489,174.06,173.94,8.33]
[1641053193986,29.07444765,174.05,173.94,8.59]
[1641053194487,29.33444765,174.05,173.97,8.6212]
[1641053194688,29.33444765,174.05,173.97,16.9512]
[1641053200495,37.95614765,174.05,173.97,16.9512]
[1641053200695,38.45614765,174.05,173.95,8.622]
[1641053200896,38.45614765,174.05,173.94,8.33]
[1641053201098,1.3502,174.04,173.94,8.33]
[1641053201602,1.4953489,174.02,173.94,8.33]
[1641053202098,2.2553489,174.02,173.94,8.33]
[1641053202298,8.6239,174.01,173.94,8.33]
[1641053202498,8.8839,174.01,173.94,8.33]
[1641053202698,9.3839,174.01,173.94,8.33]
[1641053202900,8.8839,174.01,173.94,8.33]
[1641053203098,1.4953489,174.02,173.94,8.59]
[1641053203302,0.26,174.01,173.94,8.59]
[1641053203498,1.7553489,174.02,173.94,8.59]
[1641053203699,0.26,174.02,173.94,8.59]
[1641053204500,74.4777,174.04,173.94,8.59]
[1641053204705,82.8396,174.04,173.94,17.2129]
[1641053204900,81.4894,174.04,173.94,17.2129]
[1641053205106,72.8675,174.04,173.94,17.2129]
[1641053206007,73.1275,174.04,173.94,17.2129]
[1641053208630,81.7495,174.04,173.94,17.2129]
[1641053209430,81.4895,174.04,173.94,17.2129]
[1641053210731,81.7495,174.04,173.94,17.2129]
[1641053212735,83.0454,174.04,173.96,8.6221]
[1641053212932,83.0454,174.04,173.96,16.9521]
[1641053213432,83.5454,174.04,173.96,16.9521]
[1641053217338,83.5454,174.04,173.96,8.33]
[1641053217737,1.4953489,174.03,173.96,8.33]
[1641053217937,8.6245,173.99,173.93,8.33]
[1641053218138,27.60264613,173.98,173.93,8.33]
[1641053218539,27.86264613,173.98,173.93,8.33]
[1641053218740,0.26,173.98,173.93,8.33]
[1641053218938,3.5989489,174.02,173.93,8.59]
[1641053219140,8.6238,174.0,173.93,8.59]
[1641053219538,0.26,174.0,173.93,8.59]
[1641053219741,0.26,174.0,173.93,17.2136]
[1641053220142,3.0989489,174.02,173.93,17.2136]
[1641053220739,8.623,174.01,173.93,17.2136]
[1641053221348,1.3436,174.02,173.93,17.2136]
[1641053221644,31.98138527,174.03,173.93,17.2136]
[1641053222244,31.98138527,174.03,173.94,1.2442]
[1641053222445,8.882,174.03,173.96,8.6222]
[1641053222646,0.26,174.03,173.96,8.6222]
[1641053223046,73.1275,174.04,173.96,8.6222]
[1641053223449,99.78199541,174.04,173.96,8.6222]
[1641053223658,108.40359541,174.04,173.96,8.6222]
[1641053223945,108.40359541,174.04,173.96,9.8999]
[1641053224144,108.90359541,174.04,173.96,9.8999]
[1641053226147,108.90359541,174.04,173.96,1.2777]
[1641053226546,110.39894431,174.04,173.96,1.2777]
[1641053227347,110.39894431,174.04,173.95,8.33]
[1641053227547,110.39894431,174.04,173.95,8.59]
[1641053227746,1.4953489,174.03,173.95,8.59]
[1641053227947,8.6231,174.01,173.95,8.33]
[1641053228147,2.2553489,174.03,173.95,8.33]
[1641053228348,0.26,174.01,173.91,16.9542]
[1641053228651,3.68204258,174.03,173.91,8.33]
[1641053228849,2.2553489,174.03,173.91,8.33]
[1641053229047,28.8867735,173.96,173.91,8.33]
[1641053229447,29.6467735,173.96,173.88,8.33]
[1641053229648,76.0732,173.95,173.88,8.33]
[1641053230047,76.3332,173.95,173.88,8.33]
[1641053230250,76.8332,173.95,173.88,8.33]
[1641053230449,8.6272,173.92,173.88,8.33]
[1641053230952,8.8872,173.92,173.88,8.33]
[1641053231553,8.8872,173.92,173.85,8.33]
[1641053231951,8.8872,173.92,173.85,16.9574]
[1641053235553,0.26,173.92,173.85,16.9574]
[1641053235950,8.6268,173.93,173.85,16.9574]
[1641053236151,8.8868,173.93,173.85,16.9574]
[1641053236352,9.3868,173.93,173.85,16.9574]
[1641053236549,8.8868,173.93,173.85,16.9574]
[1641053237150,9.3868,173.93,173.85,16.9574]
[1641053238551,9.1268,173.93,173.85,16.9574]
[1641053238752,10.960196,173.93,173.85,16.9574]
[1641053239451,11.460196,173.93,173.85,16.9574]
[1641053239652,10.960196,173.93,173.85,16.9574]
[1641053240153,11.720196,173.93,173.85,16.9574]
[1641053240352,11.460196,173.93,173.85,16.9574]
[1641053240553,10.960196,173.93,173.85,17.2174]
[1641053240952,2.333396,173.93,173.85,17.2174]
[1641053241155,2.833396,173.93,173.85,17.2174]
[1641053241354,2.333396,173.93,173.85,17.2174]
[1641053241557,2.593396,173.93,173.85,17.2174]
[1641053244362,3.093396,173.93,173.85,17.2174]
[1641053244562,2.593396,173.93,173.85,17.2174]
[1641053246968,2.333396,173.93,173.85,17.2174]
[1641053248564,2.303396,173.93,173.85,17.2174]
[1641053248969,76.0732,173.95,173.85,17.2174]
[1641053249168,76.3332,173.95,173.85,17.2174]
[1641053250267,76.3332,173.95,173.85,18.4761]
[1641053255703,8.6243,173.99,173.85,18.4761]
[1641053255902,1.4953489,174.0,173.88,104.13]
[1641053256202,1.4953489,174.0,173.89,9.75669368]
[1641053256401,1.4953489,174.01,173.89,9.75669368]
[1641053256701,1.4953489,174.01,173.9,1.42669368]
[1641053256902,1.4953489,174.01,173.91,8.33]
[1641053257105,1.4953489,174.01,173.92,28.7392]
[1641053257402,1.4953489,174.03,173.93,8.33]
[1641053257604,1.4953489,174.03,173.93,10.01669368]
[1641053258004,88.4574,174.06,173.93,10.01669368]
[1641053258204,88.4574,174.06,173.98,8.6205]
[1641053258505,79.8362,174.06,173.98,16.9505]
[1641053259004,79.8362,174.06,173.98,17.2105]
[1641053259203,80.3362,174.06,173.98,17.2105]
[1641053259405,79.8362,174.06,173.98,17.2105]
[1641053260006,80.0962,174.06,173.98,17.2105]
[1641053260206,79.8362,174.06,173.98,17.2105]
[1641053261505,80.0962,174.06,173.98,17.2105]
[1641053261706,80.0962,174.06,173.98,16.9505]
[1641053261905,80.5962,174.06,173.98,16.9505]
[1641053262108,80.0962,174.06,173.98,16.9505]
[1641053262605,80.3362,174.06,173.98,16.9505]
[1641053262818,79.8362,174.06,173.98,16.9505]
[1641053263008,88.4572,174.06,173.98,8.33]
[1641053263209,88.9572,174.06,173.98,8.33]
[1641053264008,88.7172,174.06,173.98,8.33]
[1641053264209,89.2172,174.06,173.98,8.33]
[1641053264610,88.7172,174.06,173.98,8.33]
[1641053265312,89.2172,174.06,173.98,8.33]
[1641053266313,88.7172,174.06,173.98,8.33]
[1641053267011,89.2172,174.06,173.98,8.33]
[1641053267214,88.7172,174.06,173.98,8.33]
[1641053267812,88.9572,174.06,173.98,8.33]
[1641053268013,88.4572,174.06,173.98,8.33]
[1641053268413,88.9572,174.06,173.98,8.33]
[1641053269318,88.4572,174.06,173.98,8.33]
[1641053269518,88.7172,174.06,173.98,8.33]
[1641053269920,89.2172,174.06,173.98,8.33]
[1641053270121,1.4953489,174.05,173.98,8.33]
[1641053270519,1.4953489,174.05,173.98,8.59]
[1641053270719,1.9953489,174.05,173.98,8.59]
[1641053271120,8.6216,174.05,173.98,8.59]
[1641053271321,8.6216,174.05,173.98,8.33]
[1641053271519,8.8816,174.05,173.98,8.33]
[1641053271720,9.3816,174.05,173.98,8.33]
[1641053272522,10.8769489,174.05,173.98,8.33]
[1641053272721,10.3769489,174.05,173.98,8.33]
[1641053272921,10.8769489,174.05,173.98,8.33]
[1641053273325,10.3769489,174.05,173.98,8.33]
[1641053273721,8.8816,174.05,173.98,8.33]
[1641053273921,9.3816,174.05,173.98,8.33]
[1641053274323,10.3769489,174.05,173.98,8.33]
[1641053275426,10.8769489,174.05,173.98,8.33]
[1641053275725,10.3769489,174.05,173.98,8.33]
[1641053275928,8.8816,174.05,173.98,8.33]
[1641053276325,9.3816,174.05,173.98,8.33]
[1641053276725,8.8816,174.05,173.98,8.33]
[1641053277329,9.3816,174.05,173.98,8.33]
[1641053277527,8.8816,174.05,173.98,8.33]
[1641053278829,9.3816,174.05,173.98,8.33]
[1641053279030,0.26,174.05,173.98,8.33]
[1641053279332,0.26,174.05,173.98,16.9508]
[1641053279530,80.5962,174.06,173.98,16.9508]
[1641053280032,80.0962,174.06,173.98,16.9508]
[1641053280533,80.5962,174.06,173.98,16.9508]
[1641053280734,80.0962,174.06,173.98,16.9508]
[1641053280937,88.7173,174.06,173.98,16.9508]
[1641053281339,89.2173,174.06,173.98,16.9508]
[1641053281560,88.7173,174.06,173.98,16.9508]
[1641053281960,89.2173,174.06,173.98,16.9508]
[1641053282362,88.7173,174.06,173.98,16.9508]
[1641053282565,79.8362,174.06,173.98,17.2108]
[1641053283864,1.4953489,174.09,173.98,17.2108]
[1641053284063,82.4354489,174.11,174.02,8.6188]
[1641053284265,82.4354489,174.11,174.02,16.9488]
[1641053284464,82.9354489,174.11,174.02,16.9488]
[1641053284663,22.77356391,174.1,174.02,16.9488]
[1641053285465,23.27356391,174.1,174.02,16.9488]
[1641053285664,22.77356391,174.1,174.02,16.9488]
[1641053286268,23.27356391,174.1,174.02,8.33]
[1641053286468,23.53356391,174.1,174.02,8.33]
[1641053286664,23.03356391,174.1,174.02,8.33]
[1641053287366,23.53356391,174.1,174.02,8.33]
[1641053287569,32.15286391,174.1,174.02,8.33]
[1641053288173,33.64821281,174.1,174.02,8.33]
[1641053288573,1.4953489,174.09,174.02,8.33]
[1641053288772,10.1150489,174.09,174.02,8.33]
[1641053288972,10.3750489,174.09,174.02,8.33]
[1641053290774,1.7553489,174.09,174.02,8.33]
[1641053291375,1.4953489,174.09,174.02,8.33]
[1641053291580,22.77356391,174.1,174.02,16.9488]
[1641053292276,33.72615891,174.1,174.02,16.9488]
[1641053292475,35.22150781,174.1,174.02,16.9488]
[1641053292678,12.7079439,174.1,174.02,16.9488]
[1641053292875,12.7079439,174.1,174.02,17.2088]
[1641053293276,11.212595,174.1,174.02,17.2088]
[1641053293675,35.4871342,174.1,174.02,17.2088]
[1641053293877,35.4871342,174.1,174.02,8.59]
[1641053294478,35.9871342,174.1,174.02,8.59]
[1641053295079,35.9871342,174.1,174.02,17.2089]
[1641053295882,35.4871342,174.1,174.02,17.2089]
[1641053296382,35.9871342,174.1,174.02,17.2089]
[1641053296581,35.4871342,174.1,174.02,17.2089]
[1641053296782,35.4871342,174.1,174.02,16.9489]
[1641053296983,35.9871342,174.1,174.02,8.33]
[1641053297686,35.4871342,174.1,174.02,8.33]
[1641053297891,35.9871342,174.1,174.02,8.33]
[1641053302389,33.6537392,174.1,174.02,8.33]
[1641053303688,33.3937392,174.1,174.02,8.33]
[1641053303889,33.3937392,174.1,174.02,8.59]
[1641053304090,83.94002161,174.11,174.02,16.949]
[1641053304289,82.66532161,174.11,174.02,18.63569368]
[1641053304789,75.9777,174.12,174.02,18.63569368]
[1641053304991,75.9777,174.12,174.02,26.41769368]
[1641053305391,4.30129336,174.14,174.02,26.41769368]
[1641053306191,2.99939336,174.14,174.08,8.6152]
[1641053306492,73.7079,174.15,174.08,17.2052]
[1641053306690,75.2032489,174.15,174.08,17.2052]
[1641053306891,1.4953489,174.15,174.08,17.2052]
[1641053307091,2.333395,174.14,174.08,17.2052]
[1641053310896,2.333395,174.14,174.08,18.63189368]
[1641053313300,2.333395,174.14,174.08,122.76189368]
[1641053317128,1.4953489,174.19,174.08,122.76189368]
[1641053317428,1.9953489,174.19,174.08,122.76189368]
[1641053317628,0.5,174.19,174.08,122.76189368]
[1641053317828,0.5,174.19,174.09,1.3287]
[1641053318029,0.5,174.19,174.14,8.6124]
[1641053318229,0.76,174.2,174.15,8.33]
[1641053318430,0.26,174.2,174.15,8.33]
[1641053318629,77.0489,174.23,174.15,8.33]
[1641053318828,2.333395,174.19,174.15,8.33]
[1641053319228,2.833395,174.19,174.15,8.33]
[1641053319429,2.333395,174.19,174.15,8.33]
[1641053319629,2.333395,174.19,174.15,17.2024]
[1641053323739,2.333395,174.19,174.15,18.62909368]
[1641053328242,2.333395,174.19,174.15,18.36909368]
[1641053328845,1.4953489,174.22,174.15,18.36909368]
[1641053329145,1.7553489,174.22,174.15,18.36909368]
[1641053329543,1.7553489,174.22,174.15,18.62909368]
[1641053330543,1.4953489,174.22,174.15,18.62909368]
[1641053331545,2.2553489,174.22,174.15,18.62909368]
[1641053331749,1.7553489,174.22,174.15,8.33]
[1641053331946,2.2553489,174.22,174.15,8.33]
[1641053332545,2.2553489,174.22,173.91,442.2739512]
[1641053332748,10.8688489,174.22,174.09,8.6152]
[1641053332947,2.7727489,174.21,174.1,8.33]
[1641053333447,3.5327489,174.21,174.1,8.33]
[1641053333847,1.4953489,174.18,174.1,8.33]
[1641053334072,30.79072892,174.18,174.1,8.33]
[1641053334247,31.29072892,174.18,174.1,8.33]
[1641053334448,1.4953489,174.17,174.1,8.33]
[1641053334651,1.4953489,174.17,174.1,16.945]
[1641053334849,1.7553489,174.17,174.1,16.945]
[1641053337960,1.4953489,174.17,174.1,17.205]
[1641053338159,1.4953489,174.17,174.1,18.63169368]
[1641053338355,1.4953489,174.19,174.1,18.63169368]
[1641053339155,1.4953489,174.21,174.1,18.63169368]
[1641053339359,1.4953489,174.21,174.11,1.3225]
[1641053339556,1.4953489,174.21,174.16,8.6113]